bitfinex/quotes_SOLUSD_20220228
["timestamp","ask_amount","ask_price","bid_price","bid_amount"]
[1646033527887,0.60668148,88.149,88.062,6.0]
[1646033528088,0.60668148,88.149,88.054,6.0]
[1646033528288,0.60668148,88.149,88.053,2.4940531]
[1646033529689,0.60668148,88.149,88.052,34.07839208]
[1646033529690,0.60668148,88.149,88.054,34.07839208]
[1646033529990,0.60668148,88.149,88.055,2.2644237]
[1646033530189,0.03743207,88.138,88.055,2.2644237]
[1646033530390,0.03743207,88.138,88.056,34.03765875]
[1646033530590,0.03743207,88.138,88.057,2.76913012]
[1646033532791,0.03743207,88.138,88.051,404.04774931]
[1646033532991,17.0394,88.13,88.052,2.25283542]
[1646033534294,17.0421,88.12,88.052,2.25283542]
[1646033534493,53.64641124,88.119,88.052,2.25283542]
[1646033534693,1.41460832,88.118,88.052,2.25283542]
[1646033535397,17.0445,88.11,88.052,2.25283542]
[1646033535797,53.64641124,88.119,88.052,2.25283542]
[1646033536602,53.64641124,88.119,88.031,3.04347604]
[1646033536800,0.03741112,88.137,88.038,31.79695777]
[1646033537003,0.03741112,88.137,88.039,9.06981766]
[1646033538005,47.70546732,88.129,88.041,2.70788406]
[1646033538203,1.3907428,88.128,88.026,3.07257175]
[1646033538403,1.3907428,88.128,88.021,2.49837952]
[1646033538601,1.3907428,88.128,88.022,6.0]
[1646033539501,17.0423,88.12,88.03,17.0407]
[1646033539704,17.0423,88.12,88.031,2.85675979]
[1646033540503,17.0444,88.11,88.012,2.9554374]
[1646033540724,46.91516788,88.109,88.012,2.9554374]
[1646033541424,46.91516788,88.109,88.014,2.49070339]
[1646033542327,17.0452,88.1,88.014,2.49070339]
[1646033542725,17.0452,88.1,88.014,34.28766116]
[1646033542925,17.0452,88.1,88.015,2.28471461]
[1646033543324,17.0452,88.1,88.001,83.0641]
[1646033543525,17.0452,88.1,88.002,8.60855944]
[1646033544529,17.0474,88.09,88.002,8.60855944]
[1646033544727,53.58288411,88.089,88.002,8.60855944]
[1646033544926,53.58288411,88.089,88.002,2.60855944]
[1646033545528,53.58288411,88.089,88.002,31.27136458]
[1646033545726,53.58288411,88.089,88.003,2.57587451]
[1646033545927,53.58288411,88.089,88.003,28.95218006]
[1646033546127,53.58288411,88.089,88.004,3.06981831]
[1646033546327,22.8338,88.107,88.004,3.06981831]
[1646033546527,22.8338,88.107,88.006,115.3]
[1646033546729,22.8338,88.107,88.02,13.7]
[1646033546927,22.8338,88.107,88.021,6.0]
[1646033547128,22.8338,88.107,88.021,8.75324774]
[1646033547427,58.71407446,88.106,88.021,8.75324774]
[1646033547629,58.71407446,88.106,88.021,5.50003695]
[1646033547826,58.71407446,88.106,88.021,19.92594774]
[1646033548028,58.71407446,88.106,88.021,17.1727]
[1646033548226,58.71407446,88.106,88.022,3.04829749]
[1646033548928,58.71407446,88.106,88.023,6.0]
[1646033549331,60.27970124,88.106,88.022,3.04829749]
[1646033550130,60.31646253,88.106,88.022,3.04829749]
[1646033550529,0.03676129,88.106,88.022,3.04829749]
[1646033550729,0.03676129,88.106,88.023,8.74678921]
[1646033550930,0.03676129,88.106,88.023,37.7582035]
[1646033551131,0.03676129,88.106,88.024,5.53697983]
[1646033551329,0.03676129,88.106,88.025,8.98572894]
[1646033552933,0.03676129,88.106,88.025,2.98572894]
[1646033554337,0.03676129,88.106,88.026,6.0]
[1646033554541,0.03676129,88.106,88.027,115.3]
[1646033554738,0.03676129,88.106,88.031,2.42124515]
[1646033554934,0.03676129,88.106,88.032,6.0]
[1646033555133,45.93523623,88.126,88.032,6.0]
[1646033555134,45.97210237,88.126,88.032,6.0]
[1646033555540,2.74678921,88.125,88.032,6.0]
[1646033556136,2.74678921,88.125,88.04,17.0387]
[1646033556338,45.97210237,88.126,88.041,123.90150001]
[1646033556538,45.97210237,88.126,88.042,2.50334814]
[1646033556740,45.97210237,88.126,88.043,6.0]
[1646033556937,0.03686614,88.126,88.043,6.0]
[1646033557339,0.03686614,88.126,88.051,115.3]
[1646033557542,0.03686614,88.126,88.053,115.3]
[1646033557841,0.03686614,88.126,88.061,115.3]
[1646033558039,0.03686614,88.126,88.062,8.54169882]
[1646033559344,0.03686614,88.126,88.062,123.84169882]
[1646033559643,0.03686614,88.126,88.07,17.0326]
[1646033559840,0.03686614,88.126,88.071,8.72890439]
[1646033560241,0.56998309,88.149,88.071,8.72890439]
[1646033560242,0.60726848,88.149,88.071,8.72890439]
[1646033561245,0.60726848,88.149,88.071,2.72890439]
[1646033561645,0.60726848,88.149,88.072,6.0]
[1646033562248,0.60726848,88.149,88.071,2.72890439]
[1646033562650,0.60726848,88.149,88.08,17.0308]
[1646033562850,0.60726848,88.149,88.081,2.91917942]
[1646033563248,0.60726848,88.149,88.074,2.62320741]
[1646033563449,0.60726848,88.149,88.075,6.0]
[1646033563850,0.60726848,88.149,88.071,2.25116504]
[1646033564954,0.60726848,88.149,88.081,2.51270675]
[1646033565151,0.60726848,88.149,88.061,2.78042524]
[1646033568655,0.60726848,88.149,88.062,6.0]
[1646033569058,0.60726848,88.149,88.062,121.3]
[1646033569256,0.60726848,88.149,88.071,2.98370386]
[1646033569857,0.60726848,88.149,88.072,6.0]
[1646033570061,0.60726848,88.149,88.057,16.9433]
[1646033570259,0.60726848,88.149,88.058,2.94933309]
[1646033570459,0.60726848,88.149,88.06,17.035]
[1646033570658,0.60726848,88.149,88.061,2.73872499]
[1646033571261,0.60726848,88.149,88.071,115.3]
[1646033571460,0.60726848,88.149,88.091,115.3]
[1646033571660,0.60726848,88.149,88.09,17.0258]
[1646033571661,6.848e-05,88.149,88.101,115.3]
[1646033571861,6.848e-05,88.149,88.111,2.31082825]
[1646033572062,6.848e-05,88.149,88.12,16.36]
[1646033572262,6.848e-05,88.149,88.121,8.85996398]
[1646033572564,6.848e-05,88.149,88.121,27.91548534]
[1646033572762,6.848e-05,88.149,88.123,2.43151408]
[1646033573168,6.848e-05,88.149,88.13,17.0192]
[1646033573363,3.13864323,88.277,88.14,16.36]
[1646033573563,1.44877777,88.27,88.15,56.7189]
[1646033573863,1.38981813,88.296,88.16,16.36]
[1646033574063,0.0001,88.218,88.16,16.36]
[1646033574263,0.0001,88.218,88.161,24.97023686]
[1646033574487,0.0001,88.218,88.162,3.02324411]
[1646033574679,0.0001,88.218,88.163,6.0]
[1646033574879,0.0001,88.218,88.163,8.367395]
[1646033575083,0.0001,88.218,88.163,2.367395]
[1646033576180,0.0001,88.218,88.163,19.217795]
[1646033576487,0.0001,88.218,88.17,17.0129]
[1646033576681,0.0001,88.218,88.171,2.88555309]
[1646033579684,0.0001,88.218,88.151,2.45660146]
[1646033580685,0.0001,88.218,88.15,33.379]
[1646033580686,0.0001,88.218,88.125,2.78474154]
[1646033580885,54.18631391,88.216,88.08,16.36]
[1646033581085,126.53571391,88.216,88.08,16.36]
[1646033581284,4.40842021,88.215,88.081,2.39374982]
[1646033581486,22.24671605,88.215,88.081,2.39374982]
[1646033581688,0.0001,88.218,88.091,118.41226805]
[1646033581885,0.0001,88.218,88.103,115.3]
[1646033582088,0.0001,88.218,88.106,2.62305734]
[1646033582285,0.0001,88.218,88.121,115.3]
[1646033582487,0.0001,88.218,88.131,115.3]
[1646033582686,0.0001,88.218,88.14,16.36]
[1646033582988,0.0001,88.218,88.141,8.88469599]
[1646033583186,0.0001,88.218,88.15,17.0157]
[1646033583389,0.0001,88.218,88.151,8.61539555]
[1646033583587,0.0001,88.218,88.151,6.0]
[1646033583987,0.0001,88.218,88.144,6.0]
[1646033584386,0.0001,88.218,88.144,32.39302198]
[1646033584588,0.0001,88.218,88.161,3.08735224]
[1646033584988,0.0001,88.218,88.146,2.82543808]
[1646033585192,0.0001,88.218,88.147,6.0]
[1646033585498,0.0001,88.218,88.15,17.0179]
[1646033585694,0.0001,88.218,88.126,2.74678921]
[1646033585890,0.0001,88.218,88.127,6.0]
[1646033586296,0.0001,88.218,88.128,2.74678921]
[1646033586491,0.0001,88.218,88.131,115.3]
[1646033586690,0.0001,88.218,88.132,2.53549771]
[1646033586890,0.0001,88.218,88.133,6.0]
[1646033587092,0.0001,88.218,88.14,17.0206]
[1646033587391,0.0001,88.218,88.141,2.45277312]
[1646033587591,0.0001,88.218,88.134,2.74678921]
[1646033587792,0.0001,88.218,88.135,6.0]
[1646033588391,0.0001,88.218,88.15,17.0184]
[1646033588594,0.0001,88.218,88.151,2.91361008]
[1646033589191,0.0001,88.218,88.135,6.0]
[1646033589492,0.0001,88.218,88.128,2.63302519]
[1646033589692,0.0001,88.218,88.13,17.0217]
[1646033589993,17.0241,88.21,88.131,2.50864644]
[1646033590195,17.0241,88.21,88.131,2.74678921]
[1646033590393,1.63948751,88.209,88.121,2.83941256]
[1646033590593,1.63948751,88.209,88.09,56.7524]
[1646033590594,1.63948751,88.209,88.096,16.9012]
[1646033590790,1.63948751,88.209,88.097,8.64619585]
[1646033590991,33.3852,88.21,88.1,16.9271]
[1646033591192,33.3852,88.21,88.101,6.0]
[1646033591393,1.79232105,88.209,88.101,2.93509829]
[1646033591592,1.79232105,88.209,88.102,6.0]
[1646033591997,115.3,88.199,88.101,2.93509829]
[1646033592192,115.3,88.189,88.07,17.0326]
[1646033592395,16.36,88.19,88.07,17.0326]
[1646033592396,115.3,88.187,88.072,6.0]
[1646033592593,1.40839366,88.186,88.073,10.0]
[1646033592793,1.40839366,88.186,88.074,6.0]
[1646033592993,115.3,88.18,88.074,8.73956789]
[1646033593197,17.0343,88.16,88.074,8.73956789]
[1646033593396,70.4009,88.18,88.074,8.73956789]
[1646033593397,56.7809,88.18,88.074,8.73956789]
[1646033593594,56.7809,88.18,88.075,2.74678921]
[1646033593795,1.5350066,88.179,88.076,6.0]
[1646033594295,1.5350066,88.179,88.062,6.0]
[1646033595096,1.5350066,88.179,88.061,2.74678921]
[1646033595097,45.5403899,88.159,88.049,2.74678921]
[1646033595298,1.67507917,88.158,88.05,6.0]
[1646033595498,4.42186838,88.158,88.05,6.0]
[1646033595699,1.67507917,88.158,88.047,6.0]
[1646033595897,115.3,88.156,88.047,6.0]
[1646033596098,1.49970693,88.155,88.038,6.0]
[1646033596299,4.24649614,88.155,88.038,8.30154138]
[1646033596501,17.0392,88.14,88.04,17.0382]
[1646033596698,1.74799461,88.139,88.041,8.81513448]
[1646033597400,17.0392,88.14,88.042,115.3]
[1646033597599,17.0392,88.14,88.043,6.0]
[1646033597898,2.74678921,88.154,88.051,2.80400095]
[1646033598098,2.74678921,88.154,88.052,6.0]
[1646033598300,2.74678921,88.154,88.052,8.74678921]
[1646033598498,2.74678921,88.154,88.052,27.81866726]
[1646033598700,56.7972,88.16,88.053,5.31576723]
[1646033598898,56.7972,88.16,88.054,6.0]
[1646033599099,56.7972,88.16,88.054,27.81866726]
[1646033599299,56.7972,88.16,88.055,2.80560075]
[1646033599502,17.0354,88.15,88.06,17.0351]
[1646033599700,17.0354,88.15,88.061,8.75636558]
[1646033600100,2.74678921,88.168,88.062,115.3]
[1646033600303,5.0,102.98,88.063,121.3]
[1646033600304,1.72768871,88.208,88.063,121.3]
[1646033600501,2.74678921,88.179,88.064,2.45304934]
[1646033600704,1.45200344,88.189,88.065,6.0]
[1646033600903,1.73141876,88.177,88.066,115.3]
[1646033601103,128.92,88.2,88.068,115.3]
[1646033601301,2.74678921,88.181,88.07,115.3]
[1646033601501,17.0332,88.17,88.071,8.72884158]
[1646033601704,17.0332,88.17,88.071,2.72884158]
[1646033602008,17.0332,88.17,88.072,6.0]
[1646033602302,2.74678921,88.185,88.073,3.00655684]
[1646033602504,2.74678921,88.185,88.081,115.3]
[1646033602802,56.7549,88.22,88.091,115.3]
[1646033603001,48.9714,88.219,88.092,2.59546674]
[1646033603203,48.9714,88.219,88.094,115.3]
[1646033603405,48.9714,88.219,88.096,115.3]
[1646033603602,52.64090812,88.218,88.1,13.62]
[1646033603803,17.0253,88.21,88.12,17.0241]
[1646033604004,17.0253,88.21,88.121,8.62377688]
[1646033604405,17.0253,88.21,88.122,19.07049138]
[1646033604604,17.0253,88.21,88.123,8.61151528]
[1646033605805,1.47815217,88.209,88.123,8.61151528]
[1646033606009,17.0261,88.2,88.123,8.61151528]
[1646033606205,52.64090812,88.218,88.124,19.07049138]
[1646033606409,54.00325398,88.218,88.125,8.44592788]
[1646033607609,1.49025472,88.209,88.125,2.44592788]
[1646033608130,2.74678921,88.208,88.111,3.0473179]
[1646033608911,17.0284,88.19,88.111,3.0473179]
[1646033609113,49.86946964,88.189,88.111,3.0473179]
[1646033610512,49.86946964,88.189,88.112,6.0]
[1646033611111,49.86946964,88.189,88.097,2.39276962]
[1646033611316,49.86946964,88.189,88.098,6.0]
[1646033612611,49.86946964,88.189,88.101,2.91406545]
[1646033612814,49.86946964,88.189,88.102,6.0]
[1646033613513,49.86946964,88.189,88.101,2.91406545]
[1646033614013,49.86946964,88.189,88.102,6.0]
[1646033615315,51.71742313,88.189,88.102,6.0]
[1646033615739,49.86946964,88.189,88.101,2.91406545]
[1646033615941,49.86946964,88.189,88.102,6.0]
[1646033616739,49.86946964,88.189,88.11,17.0273]
[1646033616940,49.86946964,88.189,88.111,2.56258452]
[1646033617340,2.74678921,88.188,88.111,2.56258452]
[1646033617540,49.86946964,88.189,88.111,2.56258452]
[1646033618845,17.0303,88.18,88.09,17.03]
[1646033619144,17.0303,88.18,88.091,2.95110946]
[1646033619342,17.0303,88.18,88.092,6.0]
[1646033619544,17.0303,88.18,88.085,16.9619]
[1646033619545,96.77326964,88.189,88.086,8.79115752]
[1646033619743,96.77326964,88.189,88.092,2.74678921]
[1646033619944,96.77326964,88.189,88.093,6.0]
[1646033620142,96.77326964,88.189,88.093,121.3]
[1646033620344,96.77326964,88.189,88.094,2.74678921]
[1646033620545,96.77326964,88.189,88.1,17.0293]
[1646033620744,96.77326964,88.189,88.101,6.0]
[1646033620944,96.77326964,88.189,88.101,8.88854852]
[1646033621144,96.77326964,88.189,88.101,6.0]
[1646033621357,46.9038,88.189,88.087,115.3]
[1646033621545,46.9038,88.189,88.11,17.0275]
[1646033621744,46.9038,88.189,88.111,8.84197712]
[1646033622145,46.9038,88.189,88.111,6.0]
[1646033622344,57.02630963,88.188,88.102,6.0]
[1646033622944,57.02630963,88.188,88.12,17.0251]
[1646033623146,57.02630963,88.188,88.102,6.0]
[1646033624444,57.02630963,88.188,88.11,17.0275]
[1646033624647,57.02630963,88.188,88.111,6.0]
[1646033624847,57.02630963,88.188,88.111,8.61948951]
[1646033625046,57.02630963,88.188,88.111,6.0]
[1646033625246,46.9038,88.189,88.102,6.0]
[1646033625450,46.9038,88.189,88.111,2.74678921]
[1646033625651,79.6199,88.24,88.121,2.8393849]
[1646033625848,22.8759,88.24,88.13,13.62]
[1646033626048,47.1815,88.263,88.132,115.3]
[1646033626248,50.73348336,88.239,88.135,2.30129442]
[1646033626450,47.1815,88.263,88.151,115.3]
[1646033626651,47.1815,88.263,88.153,115.3]
[1646033626847,133.96896917,88.276,88.155,115.3]
[1646033627048,133.96896917,88.276,88.171,115.3]
[1646033627348,58.37947001,88.254,88.18,13.62]
[1646033627546,58.37947001,88.254,88.181,6.0]
[1646033627747,58.37947001,88.254,88.19,17.012]
[1646033627948,23.8116,88.275,88.191,2.93899716]
[1646033628347,133.96896917,88.276,88.193,115.3]
[1646033628549,133.96896917,88.276,88.196,2.90561932]
[1646033628748,133.96896917,88.276,88.2,17.0088]
[1646033628948,56.86224257,88.274,88.201,8.98991869]
[1646033629749,133.96896917,88.276,88.201,8.98991869]
[1646033629948,133.96896917,88.276,88.202,20.7761662]
[1646033630148,71.5025,88.317,88.203,6.0]
[1646033630347,71.5025,88.317,88.204,115.3]
[1646033630547,71.5025,88.317,88.206,115.3]
[1646033630747,71.5025,88.317,88.204,29.10375144]
[1646033630748,71.5025,88.317,88.211,115.3]
[1646033630947,71.5025,88.317,88.221,115.3]
[1646033631150,16.611,88.362,88.231,115.3]
[1646033631349,16.111,88.362,88.232,8.65773759]
[1646033631548,1.4905564,88.361,88.232,8.65773759]
[1646033631751,45.38440669,88.359,88.232,8.65773759]
[1646033631951,1.56757396,88.358,88.233,35.48187398]
[1646033632149,1.56757396,88.358,88.234,8.90099814]
[1646033632348,68.14033432,88.359,88.25,16.9981]
[1646033632549,68.14033432,88.359,88.251,8.67115354]
[1646033633149,1.77555482,88.358,88.251,8.67115354]
[1646033633348,68.14033432,88.359,88.251,8.67115354]
[1646033633551,1.79193235,88.358,88.251,2.67115354]
[1646033633749,1.79193235,88.358,88.241,2.83335794]
[1646033633950,1.79193235,88.358,88.242,6.0]
[1646033634252,68.14033432,88.359,88.243,2.74678921]
[1646033634450,16.9979,88.35,88.26,16.9982]
[1646033634651,16.9979,88.35,88.261,2.61968418]
[1646033635053,43.75813432,88.359,88.262,2.74678921]
[1646033635252,43.75813432,88.359,88.263,6.0]
[1646033635452,43.75813432,88.359,88.263,58.537119]
[1646033635650,43.75813432,88.359,88.264,5.2543556]
[1646033635850,43.75813432,88.359,88.265,6.0]
[1646033636050,43.75813432,88.359,88.28,13.62]
[1646033636253,43.75813432,88.359,88.265,8.74678921]
[1646033636254,43.75813432,88.359,88.29,16.9926]
[1646033636454,16.9919,88.38,88.291,8.49154725]
[1646033636653,57.57,88.458,88.291,8.49154725]
[1646033636654,1.38085816,88.422,88.3,13.62]
[1646033636855,1.74148144,88.42,88.301,9.10525226]
[1646033637052,48.0595,88.421,88.301,9.10525226]
[1646033637253,16.9854,88.42,88.31,16.9864]
[1646033637453,53.09017045,88.419,88.311,2.68356944]
[1646033637754,1.5590153,88.418,88.311,2.68356944]
[1646033638152,4.30580451,88.418,88.28,13.62]
[1646033638452,18.492619,88.4,88.291,2.91557046]
[1646033638652,24.1387,88.399,88.291,2.91557046]
[1646033638852,24.1387,88.399,88.27,135.2891]
[1646033638853,1.45693799,88.398,88.281,2.78506324]
[1646033639052,1.45693799,88.398,88.271,3.11667535]
[1646033639255,4.2037272,88.398,88.271,3.11667535]
[1646033639457,54.06700863,88.389,88.281,2.6265686]
[1646033639654,1.65506962,88.388,88.281,2.6265686]
[1646033640354,16.9951,88.37,88.271,2.89326812]
[1646033640556,23.5936,88.369,88.271,8.89326812]
[1646033640954,4.15180702,88.368,88.251,2.92417319]
[1646033641157,119.45180702,88.368,88.23,13.62]
[1646033641355,4.2664391,88.367,88.23,13.62]
[1646033641855,53.70001949,88.359,88.23,13.62]
[1646033642058,13.62,88.35,88.23,13.62]
[1646033642258,50.12328421,88.349,88.23,13.62]
[1646033642455,48.4771,88.349,88.23,13.62]
[1646033642656,51.22388921,88.349,88.23,13.62]
[1646033642854,2.74678921,88.348,88.231,6.0]
[1646033643055,2.74678921,88.348,88.231,8.88266479]
[1646033643258,4.55375774,88.348,88.231,2.61543459]
[1646033643459,56.6803,88.34,88.23,30.6223]
[1646033643656,48.4771,88.349,88.231,6.87567868]
[1646033644560,1.7278157,88.348,88.232,6.0]
[1646033644757,48.4771,88.349,88.23,13.62]
[1646033644957,48.4771,88.349,88.231,8.37289459]
[1646033645359,115.3,88.348,88.231,8.37289459]
[1646033645557,17.0002,88.34,88.24,17.0002]
[1646033645756,1.84568608,88.339,88.22,13.62]
[1646033645956,22.9214,88.338,88.221,8.69441338]
[1646033646157,22.9214,88.338,88.222,4.531]
[1646033646356,22.9214,88.338,88.224,115.3]
[1646033646557,22.9214,88.338,88.225,8.40931432]
[1646033646757,22.9214,88.338,88.226,115.3]
[1646033646960,22.9214,88.338,88.231,115.3]
[1646033647160,17.0034,88.33,88.24,17.0002]
[1646033647358,58.51257822,88.329,88.241,9.08226605]
[1646033647958,58.51257822,88.329,88.241,3.08226605]
[1646033648161,8.51257822,88.329,88.221,2.73296735]
[1646033648359,8.51257822,88.329,88.222,10.531]
[1646033648661,17.0038,88.32,88.23,17.0022]
[1646033648863,17.0038,88.32,88.231,8.38000396]
[1646033649663,17.0038,88.32,88.231,2.38000396]
[1646033649860,115.3,88.319,88.231,2.38000396]
[1646033650061,1.585748,88.318,88.217,2.88851864]
[1646033650361,48.07958229,88.309,88.217,2.88851864]
[1646033650761,48.07958229,88.309,88.217,0.31496864]
[1646033651462,48.07958229,88.309,88.22,17.0038]
[1646033651963,48.07958229,88.309,88.221,7.21498622]
[1646033652564,17.0074,88.3,88.221,7.21498622]
[1646033652764,17.0074,88.3,88.204,2.74678921]
[1646033652965,24.9594,88.299,88.204,2.74678921]
[1646033653367,24.9594,88.299,88.203,2.8599719]
[1646033653766,43.62779793,88.289,88.203,2.8599719]
[1646033654366,1.65748372,88.288,88.191,2.64863099]
[1646033654566,49.13988372,88.288,88.181,2.81045834]
[1646033654770,115.3,88.279,88.163,2.60144245]
[1646033654969,115.3,88.279,88.145,4.533]
[1646033654970,1.7995142,88.278,88.153,2.85351495]
[1646033655167,115.3,88.276,88.154,6.0]
[1646033655368,115.3,88.274,88.143,6.0]
[1646033655569,115.3,88.259,88.143,6.0]
[1646033655867,1.68030723,88.256,88.143,6.0]
[1646033656468,17.0177,88.25,88.143,6.0]
[1646033657271,17.0177,88.25,88.145,2.72100765]
[1646033657468,17.0177,88.25,88.146,6.0]
[1646033657868,17.0177,88.25,88.15,17.0173]
[1646033658071,17.0177,88.25,88.152,115.3]
[1646033658271,100.69182527,88.258,88.154,115.3]
[1646033658470,100.69182527,88.258,88.156,115.3]
[1646033658670,100.69182527,88.258,88.16,13.62]
[1646033658868,100.69182527,88.258,88.161,6.0]
[1646033659069,100.69182527,88.258,88.162,4.534]
[1646033659271,100.69182527,88.258,88.163,6.0]
[1646033659469,100.69182527,88.258,88.17,17.0132]
[1646033659670,100.69182527,88.258,88.171,8.81156629]
[1646033659873,100.69182527,88.258,88.173,2.38699526]
[1646033660072,100.69182527,88.258,88.175,3.04272578]
[1646033660269,100.69182527,88.258,88.176,6.0]
[1646033660872,100.69182527,88.258,88.166,6.0]
[1646033661271,100.69182527,88.258,88.166,8.74678921]
[1646033661484,100.69182527,88.258,88.18,17.0121]
[1646033661671,100.69182527,88.258,88.181,3.07757631]
[1646033661872,23.6563,88.29,88.183,115.3]
[1646033662072,40.6663,88.29,88.186,2.27233652]
[1646033662279,40.6663,88.29,88.187,6.0]
[1646033662674,40.6663,88.29,88.19,13.62]
[1646033662876,44.03339894,88.289,88.191,8.28671604]
[1646033663073,44.03339894,88.289,88.2,17.0086]
[1646033663273,44.03339894,88.289,88.201,2.65419128]
[1646033663876,44.03339894,88.289,88.203,115.3]
[1646033664077,44.03339894,88.289,88.204,8.38523948]
[1646033664276,44.03339894,88.289,88.204,2.38523948]
[1646033664480,44.03339894,88.289,88.205,6.0]
[1646033664987,44.03339894,88.289,88.21,17.0065]
[1646033665282,44.03339894,88.289,88.211,8.31273531]
[1646033665686,46.9537,88.299,88.211,8.31273531]
[1646033666788,47.59970382,88.298,88.211,2.31273531]
[1646033667289,17.0085,88.29,88.211,2.31273531]
[1646033667493,115.3,88.289,88.191,2.92864484]
[1646033667688,30.6285,88.29,88.17,22.5509]
[1646033667889,1.85678926,88.288,88.175,6.0]
[1646033668088,4.60357847,88.288,88.175,6.0]
[1646033668289,2.74678921,88.287,88.171,2.9590813]
[1646033668590,1.59375521,88.286,88.171,2.9590813]
[1646033668989,27.55288921,88.287,88.171,2.9590813]
[1646033669489,17.0129,88.27,88.171,2.9590813]
[1646033669691,93.80593786,88.269,88.175,6.0]
[1646033670195,116.96084217,88.268,88.171,2.9590813]
[1646033670492,17.0143,88.26,88.138,2.41230879]
[1646033670690,1.57225706,88.259,88.138,2.41230879]
[1646033670991,1.40888811,88.257,88.139,17.0563]
[1646033671190,1.40888811,88.257,88.14,2.60433014]
[1646033671589,115.3,88.256,88.14,2.60433014]
[1646033671790,115.3,88.254,88.14,2.60433014]
[1646033671998,13.62,88.24,88.14,2.60433014]
[1646033672300,17.0225,88.22,88.14,2.60433014]
[1646033672502,50.90106698,88.219,88.14,2.60433014]
[1646033673303,50.90106698,88.219,88.14,19.62353014]
[1646033673502,50.90106698,88.219,88.141,2.27219526]
[1646033673903,50.90106698,88.219,88.142,6.0]
[1646033674703,50.90106698,88.219,88.141,2.27219526]
[1646033675307,49.3644,88.239,88.141,2.27219526]
[1646033675705,49.3644,88.239,88.143,115.3]
[1646033675906,49.3644,88.239,88.15,17.0171]
[1646033676108,49.3644,88.239,88.151,8.32255944]
[1646033676308,47.94986307,88.238,88.151,11.06934865]
[1646033676507,47.94986307,88.238,88.151,8.74678921]
[1646033676707,47.94986307,88.238,88.151,6.0]
[1646033676906,47.94986307,88.238,88.146,6.0]
[1646033677306,47.94986307,88.238,88.152,2.74678921]
[1646033677508,47.94986307,88.238,88.16,17.0153]
[1646033677709,47.94986307,88.238,88.161,8.68007194]
[1646033678409,56.7043,88.3,88.162,118.04678921]
[1646033678609,17.0095,88.29,88.171,115.3]
[1646033678810,23.4751,88.3,88.173,115.3]
[1646033679011,23.4751,88.3,88.175,115.3]
[1646033679209,23.4751,88.3,88.177,115.3]
[1646033679411,56.56269485,88.299,88.19,13.62]
[1646033679610,56.56269485,88.299,88.191,6.0]
[1646033679811,56.56269485,88.299,88.191,8.27551324]
[1646033680010,56.56269485,88.299,88.191,11.02230245]
[1646033680214,56.56269485,88.299,88.193,2.41693855]
[1646033680410,56.56269485,88.299,88.196,2.39515266]
[1646033680612,56.56269485,88.299,88.202,2.48063412]
[1646033680812,56.56269485,88.299,88.203,6.0]
[1646033681613,56.56269485,88.299,88.211,3.05946124]
[1646033681814,56.56269485,88.299,88.212,6.0]
[1646033682015,56.56269485,88.299,88.211,3.05946124]
[1646033682417,56.56269485,88.299,88.212,6.0]
[1646033682616,56.56269485,88.299,88.211,3.05946124]
[1646033683120,56.56269485,88.299,88.22,17.0063]
[1646033683315,56.56269485,88.299,88.221,2.54330239]
[1646033683715,56.56269485,88.299,88.22,6.95]
[1646033684116,56.56269485,88.299,88.221,6.0]
[1646033684316,56.56269485,88.299,88.2,13.62]
[1646033684517,56.56269485,88.299,88.202,2.4243569]
[1646033684716,56.56269485,88.299,88.203,6.0]
[1646033684916,56.56269485,88.299,88.204,115.3]
[1646033685116,56.56269485,88.299,88.231,2.29571109]
[1646033686818,56.56269485,88.299,88.241,2.64056438]
[1646033687219,56.56269485,88.299,88.221,2.98152806]
[1646033687418,56.56269485,88.299,88.222,6.0]
[1646033688519,56.56269485,88.299,88.231,115.3]
[1646033688719,56.56269485,88.299,88.233,115.3]
[1646033688920,56.56269485,88.299,88.235,2.64092485]
[1646033689120,56.56269485,88.299,88.236,6.0]
[1646033689321,56.56269485,88.299,88.234,6.0]
[1646033689721,46.9818,88.335,88.241,2.70883216]
[1646033689920,46.9818,88.335,88.242,6.0]